Cogmind - Beta 13 @@@ ROGUE MODE // 2024.04.21 @ 17:52:02 Player: Cheeriohz Result: Destroyed by DAS Turret with DAS Cannon Performance ------------- Evolutions (1) 500 Regions Visited (5) 1000 Robots Destroyed (39) 195 Value Destroyed (549) 549 Prototype IDs (3) 60 Alien Tech Used (0) 0 Bonus (78) 78 TOTAL SCORE: 2382 Bonus ------- Follower Combat Kills 243 Friendly Fire -165 Cogmind --------- Core Integrity 0/400 Matter 397/500 Energy 106/280 System Corruption 0% Temperature Cool (0) Movement Treading (240) Ox1 Location -9/Exiles Parts ------- > --- POWER (1) -------- Heavy Ion Engine > --- PROPULSION (3) --- Light Treads > --- UTILITY (3) ------ High-capacity Storage Unit High-capacity Matter Pod Gravity Neutralizer > --- WEAPON (2) ------- Improved Assault Rifle Improved Assault Rifle > --- INVENTORY (20) --- Medium Battery (150) Seismic Detector High-powered Tractor Beam Improved Assault Rifle Rocket Launcher Mini Grenade Launcher Peak State ------------ > --- POWER ------------ Heavy Ion Engine > --- PROPULSION ------- Light Treads Light Treads Light Treads > --- UTILITY ---------- High-capacity Storage Unit High-capacity Matter Pod Gravity Neutralizer > --- WEAPON ----------- Improved Assault Rifle Improved Assault Rifle > --- INVENTORY -------- Heavy Ion Engine Medium Battery Seismic Detector High-powered Tractor Beam Improved Assault Rifle Improved Assault Rifle Improved Assault Rifle Rocket Launcher Mini Grenade Launcher [Rating: 22] Favorites ----------- Power Ion Engine Engine Ion Engine Propulsion Light Treads Treads Light Treads Leg Aluminum Leg Wheel Wheel Utility High-capacity Storage Unit Device Seismic Detector Storage High-capacity Storage Unit Protection Weapon Shielding Weapon Improved Assault Rifle Energy Gun Small Laser Ballistic Gun Improved Assault Rifle Launcher Rocket Launcher Build | -11 -10 -10 -9 -9 -9 ------- Run | Yrd Mat Min Mat Min Exi Slots Evolved 2 | . . . 2 . . Power . | . . . . . . Propulsion 1 | . . . 1 . . Utility 1 | . . . 1 . . Weapon . | . . . . . . Parts Attached 45 | 3 11 . 13 2 16 Power 4 | . 2 . 1 . 1 Engine 4 | . 2 . 1 . 1 Core . | . . . . . . Reactor . | . . . . . . Propulsion 12 | 2 3 . 4 . 3 Treads 6 | . . . 3 . 3 Leg . | . . . . . . Wheel 6 | 2 3 . 1 . . Hover . | . . . . . . Flight . | . . . . . . Utility 11 | 1 4 . 2 . 4 Device 3 | 1 . . 1 . 1 Storage 4 | . 3 . . . 1 Processor . | . . . . . . Hackware . | . . . . . . Protection 4 | . 1 . 1 . 2 Artifact . | . . . . . . Weapon 18 | . 2 . 6 2 8 Energy Gun 2 | . 1 . 1 . . Energy Cannon . | . . . . . . Ballistic Gun 12 | . 1 . 4 1 6 Ballistic Cannon . | . . . . . . Launcher 4 | . . . 1 1 2 Special Weapon . | . . . . . . Impact Weapon . | . . . . . . Slashing Weapon . | . . . . . . Piercing Weapon . | . . . . . . Special Melee Weapon . | . . . . . . Unidentified Prototypes 3 | . . . 2 . 1 Parts Lost 15 | . 2 . . . 13 Power 1 | . . . . . 1 Propulsion 6 | . 1 . . . 5 Utility 4 | . 1 . . . 3 Weapon 4 | . . . . . 4 Highest Loss Streak 8 | . 2 . . . 8 To Critical Strikes 3 | . . . . . 3 Average Slot Usage (%) 97 | . 95 100 100 100 96 Engine 12 | . 14 14 11 11 11 Treads 15 | . . . 27 33 32 Wheel 15 | . 27 28 5 . . Device 4 | . 4 . 11 11 3 Storage 14 | . 17 14 11 11 12 Protection 10 | . 2 14 11 11 14 Energy Gun 10 | . 24 14 1 . . Ballistic Gun 14 | . 3 14 20 21 21 Naked Turns . | . . . . . . Heaviest Build 87 | 11 87 48 58 58 59 Greatest Support 72 | 20 20 20 60 60 72 Greatest Overweight (x) 4 | . 4 2 1 . . Average Overweight (x) 1 | . 1 2 . . . Largest Inventory Capacity 25 | 8 25 20 20 20 20 Average Capacity 18 | 8 16 20 20 20 20 Most Carried 20 | 8 17 19 20 20 20 Average Carried 15 | 5 10 18 18 20 16 Final Capacity 20 | 8 20 20 20 20 20 Final Carried 20 | 8 17 19 20 20 6 Class Distribution -------------------- 97% | Mutant Dominant Class ---------------- Mutant | -10/Materials Mutant | -10/Mines Mutant | -9/Materials Mutant | -9/Mines Mutant | -9/Exiles Resources | -11 -10 -10 -9 -9 -9 ----------- Run | Yrd Mat Min Mat Min Exi Matter Collected 1613 | 258 405 166 352 27 405 Remotely . | . . . . . . Salvage Created 1205 | 153 479 152 309 . 112 Parts 79 | 18 33 5 21 1 1 Haulers Intercepted 4 | . 2 . 2 . . Recyclers Shooed . | . . . . . . Parts Field Recycled . | . . . . . . Retrieved Matter . | . . . . . . Parts Self-Destructed . | . . . . . . Prevented . | . . . . . . Kills | -11 -10 -10 -9 -9 -9 ------- Run | Yrd Mat Min Mat Min Exi Combat Hostiles Destroyed 21 | . 11 . 4 3 3 Guns 13 | . 11 . 1 . 1 AOE 8 | . . . 3 3 2 Classes Destroyed 10 | 2 5 1 1 . 1 Worker 2 | . 1 . 1 . . Builder 1 | . . 1 . . . Tunneler 8 | 5 1 2 . . . Hauler 4 | . 2 . 2 . . Recycler 2 | 1 . 1 . . . Operator 2 | . 2 . . . . Swarmer 9 | . 6 . . 3 . Grunt 9 | . 5 . 4 . . Sentry 1 | . . . 1 . . Assembled 2 | . . . . . 2 Best Kill Streak 4 | 3 4 2 4 3 2 Combat Bots Only 4 | . 4 . 3 3 2 Max Kills in Single Turn 3 | 1 1 1 3 3 1 Gunslinging . | . . . . . . Exploded 3 | . . . 3 3 1 Melee . | . . . . . . Uniques/NPCs Destroyed 1 | . . . . . 1 8R-AWN (-9/Exiles) Combat | -11 -10 -10 -9 -9 -9 -------- Run | Yrd Mat Min Mat Min Exi Hostile Shots Fired 165 | . 46 1 6 6 106 Missed 34 | . 15 1 3 3 12 Damage Taken 2639 | . 339 . 49 82 2169 Core 511 | . 89 . . 28 394 Absorbed by Shields . | . . . . . . Redirected to Shielding 104 | . . . . . 104 Core Remaining (%) 82 | 100 . 64 . . . Volleys Fired 171 | 28 54 15 11 2 61 Largest 2 | 2 2 2 2 1 2 Hottest 80 | 60 80 60 79 30 46 Shots Fired 329 | 56 108 30 20 2 113 Gun 317 | 56 108 30 18 . 105 Cannon . | . . . . . . Launcher 12 | . . . 2 2 8 Special . | . . . . . . Kinetic 163 | 28 1 16 13 . 105 Thermal 154 | 28 107 14 5 . . Explosive 12 | . . . 2 2 8 Electromagnetic . | . . . . . . Robot Hit Streak 47 | 9 11 11 7 3 47 Robot Miss Streak 3 | 3 3 1 2 . 3 Penetration Max . | . . . . . . Secondary Targets 1 | . 1 . . . . Max Gunslinging Chain 1 | . 1 . . . . Shots Hit Robots 249 | 40 74 24 14 2 95 Core Hits 81 | 9 29 8 11 2 22 Critical Kills . | . . . . . . Critical Parts Destroyed 1 | . . . . . 1 Critical Strikes 2 | . . . 1 . 1 Burn 1 | . . . 1 . . Destroy 1 | . . . . . 1 Melee Attacks . | . . . . . . Impact . | . . . . . . Slashing . | . . . . . . Piercing . | . . . . . . Sneak Attacks . | . . . . . . Combat Hostiles . | . . . . . . Follow-up Attacks . | . . . . . . Damage Inflicted 3720 | 379 835 205 409 278 1614 Guns 2994 | 379 835 205 193 . 1382 Cannons . | . . . . . . Explosions 726 | . . . 216 278 232 Melee . | . . . . . . Ramming . | . . . . . . Kinetic 1782 | 150 10 87 153 . 1382 Thermal 1212 | 229 825 118 40 . . Explosive 726 | . . . 216 278 232 Electromagnetic . | . . . . . . Impact . | . . . . . . Slashing . | . . . . . . Piercing . | . . . . . . Highest Corruption 4 | . 4 4 . . . Average Corruption 3 | . 3 4 . . . Corruption Purged . | . . . . . . Corruption Blocked . | . . . . . . Effects 45 | . 24 21 . . . Message Errors 6 | . 2 4 . . . Matter Fused 9 | . 5 4 . . . Heat Flow Errors 7 | . 4 3 . . . Energy Discharges 5 | . 5 . . . . Parts Fused 2 | . . 2 . . . Data Loss (minor) 6 | . 3 3 . . . Data Loss (major) 6 | . 3 3 . . . Misfires 2 | . 1 1 . . . Alerts 1 | . . 1 . . . Weapon Failures 1 | . 1 . . . . Overload Shots . | . . . . . . Overflow Damage 26 | . . . . 17 9 Projectiles . | . . . . . . Explosions 26 | . . . . 17 9 Melee . | . . . . . . Knockbacks . | . . . . . . Impact . | . . . . . . Kinetic . | . . . . . . Secondary . | . . . . . . Self-Inflicted Damage 66 | . . . 5 61 . Shots 3 | . . . 1 2 . Rammed . | . . . . . . Targets Rammed . | . . . . . . Kicked . | . . . . . . Crushed . | . . . . . . Highest Temperature 307 | 80 307 271 23 . . Average Temperature 65 | 32 76 79 10 . . Received Heat Transfer 147 | . 129 . 18 . . Effects 1 | . 1 . . . . Energy Bleed 1 | . 1 . . . . Siege Activations . | . . . . . . Robots Corrupted . | . . . . . . Combat Hostiles . | . . . . . . Parts Fried . | . . . . . . Impact Corruptions . | . . . . . . Robots Melted . | . . . . . . Combat Hostiles . | . . . . . . Parts Melted . | . . . . . . Heat Transferred 2823 | 525 1850 275 173 . . Parts Sabotaged . | . . . . . . Parts Stolen . | . . . . . . Parts Stripped . | . . . . . . Power Chain Reactions . | . . . . . . Alert | -11 -10 -10 -9 -9 -9 ------- Run | Yrd Mat Min Mat Min Exi Peak Influence 259 | 30 224 148 259 182 . Initial 100 | . 19 70 . 100 . Average 80 | 16 91 58 79 180 . Maximum Alert Level 1 | . 1 . 1 . . Low Security (%) 96 | 100 92 100 95 100 . Level 1 3 | . 7 . 4 . . Level 2 . | . . . . . . Level 3 . | . . . . . . Level 4 . | . . . . . . Level 5 . | . . . . . . High Security . | . . . . . . Max Security . | . . . . . . Squads Dispatched 5 | . 3 . 1 1 . Investigation 1 | . . . 1 . . Extermination . | . . . . . . Reinforcement 3 | . 3 . . . . Assault 1 | . . . . 1 . Garrison . | . . . . . . Intercept . | . . . . . . Searches Triggered . | . . . . . . Construction Impeded . | . . . . . . Haulers Reinforced . | . . . . . . Active Scanning Responses . | . . . . . . Cargo Convoy Interrupts . | . . . . . . Stealth | -11 -10 -10 -9 -9 -9 --------- Run | Yrd Mat Min Mat Min Exi Distress Signals 2 | . 2 . . . . Communications Jammed . | . . . . . . Distress Signals . | . . . . . . Times Spotted 74 | . 29 2 13 3 27 Peak Tracking Total 9 | . 4 2 3 3 9 Tactical Retreats 5 | . 2 . . . 3 Traps | -11 -10 -10 -9 -9 -9 ------- Run | Yrd Mat Min Mat Min Exi Traps Triggered 2 | . 2 . . . . Indirectly . | . . . . . . Trap Hack Attempts . | . . . . . . Triggered . | . . . . . . Disarmed . | . . . . . . Reprogrammed . | . . . . . . Reused . | . . . . . . Traps Extracted . | . . . . . . Installed . | . . . . . . Triggered . | . . . . . . Machines | -11 -10 -10 -9 -9 -9 ---------- Run | Yrd Mat Min Mat Min Exi Machines Disabled 4 | . . . . . 4 Max in Single Turn 1 | . . . . . 1 Machines Repaired . | . . . . . . Machines Dismantled . | . . . . . . Machines Sabotaged . | . . . . . . Overloaded Fab Kills . | . . . . . . Hacking | -11 -10 -10 -9 -9 -9 --------- Run | Yrd Mat Min Mat Min Exi Machines Accessed 12 | . 5 . 7 . . Terminals 11 | . 5 . 6 . . Fabricators . | . . . . . . Repair Stations . | . . . . . . Recycling Units 1 | . . . 1 . . Scanalyzers . | . . . . . . Garrison Access . | . . . . . . Total Hacks 37 | . 15 . 22 . . Successful 20 | . 4 . 16 . . Failed 17 | . 11 . 6 . . Catastrophic 2 | . 2 . . . . Database Lockouts . | . . . . . . Manual 27 | . 13 . 14 . . Terminals 36 | . 15 . 21 . . Fabricators . | . . . . . . Repair Stations . | . . . . . . Recycling Units 1 | . . . 1 . . Scanalyzers . | . . . . . . Garrison Access . | . . . . . . Terminal Hacks 13 | . 4 . 9 . . Robot Analysis 6 | . 3 . 3 . . Branch Access Points 2 | . 1 . 1 . . Terminal Index 1 | . . . 1 . . Unreport Threat 1 | . . . 1 . . Locate Traps 2 | . . . 2 . . Zone Layout 1 | . . . 1 . . Fabricator Hacks . | . . . . . . Repair Station Hacks . | . . . . . . Recycling Unit Hacks . | . . . . . . Scanalyzer . | . . . . . . Garrison Access Hacks . | . . . . . . Unauthorized Hacks 7 | . . . 7 . . Terminals 6 | . . . 6 . . Track 1 | . . . 1 . . Botnet 5 | . . . 5 . . Fabricators . | . . . . . . Repair Stations . | . . . . . . Recycling Units 1 | . . . 1 . . Tunnel 1 | . . . 1 . . Scanalyzers . | . . . . . . Garrison Access . | . . . . . . Data Cores Recovered 1 | . . . 1 . . Used . | . . . . . . Hacking Detections 11 | . 5 . 6 . . Full Trace Events . | . . . . . . Feedback Events . | . . . . . . Feedback Blocked . | . . . . . . Robot Schematics Acquired . | . . . . . . Robots Built . | . . . . . . Authchips . | . . . . . . Time . | . . . . . . Total Robot Build Rating . | . . . . . . Part Schematics Acquired . | . . . . . . Parts Built . | . . . . . . Authchips . | . . . . . . Time . | . . . . . . Total Part Build Rating . | . . . . . . Parts Repaired . | . . . . . . Time . | . . . . . . Parts Recycled . | . . . . . . Recycled Matter . | . . . . . . Retrieved Matter . | . . . . . . Retrieved Components . | . . . . . . Parts Scanalyzed . | . . . . . . Part Schematics Acquired . | . . . . . . Parts Damaged . | . . . . . . Bothacking | -11 -10 -10 -9 -9 -9 ------------ Run | Yrd Mat Min Mat Min Exi Used RIF Installer . | . . . . . . Robots Hacked . | . . . . . . Non-combat . | . . . . . . Combat . | . . . . . . Robot Hacks Applied . | . . . . . . Relay Couplers Released . | . . . . . . Fabnet Peak Effective % . | . . . . . . Robots Rewired . | . . . . . . Allies Hacked . | . . . . . . Hacks Repelled . | . . . . . . Allies | -11 -10 -10 -9 -9 -9 -------- Run | Yrd Mat Min Mat Min Exi Total Allies 4 | . . 3 . 1 . Largest Group 3 | . . 3 3 1 1 Highest-Rated Group 40 | . . 40 40 31 31 Highest-Rated Ally 31 | . . 16 16 31 31 Total Orders . | . . . . . . Ally Attacks 47 | . . 7 33 . 7 Total Damage 464 | . . 64 374 . 26 Kills 14 | . . 2 10 . 2 Allies Corrupted . | . . . . . . Allies Melted . | . . . . . . Intel | -11 -10 -10 -9 -9 -9 ------- Run | Yrd Mat Min Mat Min Exi Robot Analysis Total 6 | . 3 . 3 . . Derelict Logs Recovered 1 | . . 1 . . . Drone Launches . | . . . . . . Drone Recoveries . | . . . . . . Exploration | -11 -10 -10 -9 -9 -9 ------------- Run | Yrd Mat Min Mat Min Exi Turns Passed 3843 | 140 1049 827 711 161 955 Spaces Moved 2206 | 60 740 432 434 91 449 Core . | . . . . . . Treads 889 | . . . 349 91 449 Legs 10 | 10 . . . . . Wheels 1307 | 50 740 432 85 . . Hover . | . . . . . . Flight . | . . . . . . Fastest Speed 80 | 80 80 110 95 160 160 Average Speed 127 | 86 106 110 147 160 160 Slowest Speed 160 | 120 140 110 160 160 160 Overloaded Moves . | . . . . . . Propulsion Burnouts . | . . . . . . Robots Hopped . | . . . . . . Cave-ins Triggered . | . . . . . . Exploration Rate (%) 48 | 3 95 79 39 17 58 Regions Visited 5 Branch Regions 3 Pre-discovered Areas 2 | . . 1 1 . . Known Exits Taken 2 | . 1 . 1 . . Unknown Exits Taken 3 | 1 . 1 . 1 . Scrap Searched 2 | . . 1 . 1 . Spaces Dug . | . . . . . . Terrain Destroyed 66 | . . . 18 27 21 Melee . | . . . . . . Projectile . | . . . . . . AOE 66 | . . . 18 27 21 Terrain Rammed . | . . . . . . Walls Destroyed . | . . . . . . Machines Disabled . | . . . . . . Actions | -11 -10 -10 -9 -9 -9 --------- Run | Yrd Mat Min Mat Min Exi Total 2928 | 98 893 757 497 105 578 Wait 425 | . 70 309 2 9 35 Move 2201 | 59 739 431 433 90 449 Hop . | . . . . . . Pick Up 38 | 4 9 2 16 1 6 Fast Attach 13 | 2 5 . 5 . 1 Attach 14 | . 1 . 2 . 11 Detach 11 | 1 4 . 5 . 1 Swap 18 | 1 5 . 6 2 4 Drop 37 | 3 6 . 17 1 10 Fire 171 | 28 54 15 11 2 61 Melee . | . . . . . . Ram . | . . . . . . Kick . | . . . . . . Crush . | . . . . . . Escape Stasis . | . . . . . . Rewire . | . . . . . . Trap . | . . . . . . Miscellaneous . | . . . . . . Route ------- -11/Scrapyard -10/Materials (discovered 4 exits: *Mat x3 / *Min) -10/Mines -9/Materials (discovered 3 exits: [*Mat] / *Min x2) -9/Mines (discovered 2 exits: [*Mat] / [*Exi]) -9/Exiles (discovered 1 exit: [*Min]) History --------- Turn | Location | Event 15 | -11/Scrapyard | Discovered new exit (range 2) 141 | -11/Scrapyard | Entered Materials 239 | -10/Materials | Discovered new exit (range 5) 309 | -10/Materials | Build established: Mutant 563 | -10/Materials | Discovered new exit (range 16) 778 | -10/Materials | Discovered new exit (range 16) 861 | -10/Materials | Discovered new exit (range 16) 912 | -10/Materials | Identified exit to Mines 1190 | -10/Materials | Entered Mines 1190 | -10/Mines | Assisted by bots powering up and referring to "LRC-V3" 1244 | -10/Mines | Met a Derelict bent on vengeance 1345 | -10/Mines | Learned location of Zion (-7) 2004 | -10/Mines | Discovered new exit (range 8) 2017 | -10/Mines | Entered Materials 2017 | -9/Materials | Accompanied by 3 allies 2017 | -9/Materials | Evolved 2 slots: Propulsion x1, Utility x1 2059 | -9/Materials | Identified exit to Mines 2390 | -9/Materials | Discovered new exit (range 3) 2728 | -9/Materials | Entered Mines 2786 | -9/Mines | Discovered new exit (range 7) 2798 | -9/Mines | Met a Derelict testing a Signal Generator 2881 | -9/Mines | Deemed a non-threat by the Exiles lab entrance 2883 | -9/Mines | Discovered new exit (range 5) 2889 | -9/Mines | Entered Exiles 2889 | -9/Exiles | Accompanied by 1 ally 2928 | -9/Exiles | Met 8R-AWN 2957 | -9/Exiles | Met EX-HEX 3024 | -9/Exiles | Met EX-DEC 3081 | -9/Exiles | Discovered new exit (range 10) 3529 | -9/Exiles | Attacked by the Exiles 3742 | -9/Exiles | Core integrity fell below 50% 3757 | -9/Exiles | Destroyed 8R-AWN 3768 | -9/Exiles | Lost 8 parts (3n3u2w) 3837 | -9/Exiles | Core integrity fell below 20% 3844 | -9/Exiles | Destroyed by DAS Turret with DAS Cannon Last Messages --------------- 03724_ Machine disabled. 03724_ HV Slug penetrates Wall. 03724_ Penetrated by HV Slug. 03737_ The unstable cave ceiling collapses. 03737_ Penetrated by HV Slug. 03737_ Critical hit (Destroy). 03737_ Imp. Assault Rifle destroyed. 03741_ Penetrated by HV Slug. 03757_ 8R-AWN destroyed. 03760_ Acquired 108 matter. 03763_ Acquired Prototype Device. 03763_ Identified Gravity Neutralizer. 03764_ Acquired 70 matter. 03769_ Extracted 126 matter. 03808_ Machine disabled. 03826_ Imp. Assault Rifle destroyed. 03828_ Lgt. Treads destroyed. 03830_ Imp. Assault Rifle destroyed. 03832_ Hvy. Ion Engine destroyed. 03842_ Lgt. Treads destroyed. Map ----- +----------------------------------------------------+ | ?????????????????????????????????????????????????? | | ?????????????????????????????????????????????????? | | ?????????????????????????????????????????????????? | | ?????????????????????????????????????????????????? | | ?????????????????????????????????????????????????? | | ??????????#######????????????????????????????????? | | ####??????#!!! "#????????????????????????????????? | | #""##?????# "#????????????????????????????????? | | #?????# "#????????????????????????????????? | | ##???## ""#?????????????#????????????? | | #####" "#???????????? ""??????????? | | ##" ""#????????????" """?????????? | | #" ###????????????" ?????????? | | ###?????????"" ?????????#" | | ### # ##????????"" "?????????#" | | ??### ### ##??????? ""?????????#" | | ####" = #????????" "?????????##" # | | #????????# #????????##"" # | | ! ## #####??### ###?######"" # | | !!"## ""#;###X# #"###""""""" # | | !!#### """""" " "" | | """" ###??# # "" """ " | | ######????## ## " " | | ???????????###### % % % | | ????????????????### % | | ??????????????????## @ | | ???????????????????## | | ????????????????????##" | | ?????????????????????#" """""" | | ????????????????????##" ######""" | | ????????????????????#"" ""##????##### | | ????????????????????#"" """##?????????# | | ???????????????????#""" """##??????????? | | ???????????????????#""" ""#???????????# | | ???????????????????#"" ########??#### | | ???????????????????#""" ## ####""" | | ???????????????????#"" t """" | | ????????????????????#"" | | ????????????????????#"" " | | ?????????????????????# | | ?????????????????????#" " " | | ?????????????????????#"""" ""## ##" | | ?????????????????????#"" ""#### ### | | ??????????????????????" """"##??# #?? | | ??????????????????????""" """#??## ### | | ??????????????????????# ""##??#! "! | | ??????????????????????#"" """##???#" ! | | ????????????????????????""" #?????#" " | | ?????????????????????????"""" ##?????#!!""!" | | ???????????????????????????? #??????####### | +----------------------------------------------------+ Best States ------------- Heat Dissipation 28 Energy Generation 14 Energy Capacity 280 Matter Stores 500 Matter Capacity 500 Sight Range 16 Terrain Scan Density 10 Additional Mass Support 12 Armor Coverage 150 Weapon Shielding 33 Evasion (%) 50 Recoil Reduction 3 Item Schematics ----------------- None Robot Schematics ------------------ None Fabricated ------------ Nothing Alien Tech Used ----------------- None Achievements -------------- None Challenges ------------ None Game ------ Seed SmartbombRegenerativeLog Manual? 0 Play Time 00:29:40 Cumulative 148.3 hours Start 2024.04.21 @ 17:27:29 End 2024.04.21 @ 17:52:02 Sessions 1 Manual Loads 0 Difficulty Rogue Special Mode None Game No. 133 Rogue 133 Adventurer 0 Explorer 0 Win Type - Total 3 Types 2/0/0/1/0/0/0/0/0 Lore% 55 Gallery% 72 Achievement% 55 Wizard Run 0 Options --------- Layout 2 ASCII 0 Keyboard 1 Movement Numpad Keybinds 0 Fullscreen 1 Font 32/SmallcapsGlow Map View 77x44 Zoom Use 0% Tactical HUD 1 Map Filters NONE Filters NONE Steam 1 RUN: 237180b0-0ac8-42b7-b5e6-480799246061